bitfinex-derivatives/quotes_ETHF0:USTF0_20250910
["timestamp","ask_amount","ask_price","bid_price","bid_amount"]
[1757508013298,0.7877,4373.4,4372.5,3.2078]
[1757508013505,3.2078,4373.5,4372.8,0.8171]
[1757508013706,0.7877,4373.4,4372.7,3.03110798]
[1757508013903,0.7877,4373.4,4372.8,0.298]
[1757508014106,0.3037,4373.0,4371.8,4.0249]
[1757508014310,0.7877,4372.9,4372.1,2.92823442]
[1757508014504,0.7877,4372.9,4372.1,0.41163]
[1757508014705,0.7877,4372.9,4372.0,0.8171]
[1757508014905,0.7877,4372.9,4372.1,0.41163]
[1757508015212,0.7877,4372.9,4372.0,4.07437263]
[1757508015409,3.2078,4373.1,4372.1,0.8171]
[1757508015810,3.2078,4373.1,4372.5,0.8171]
[1757508016015,3.2078,4373.1,4372.7,0.8171]
[1757508016016,3.9955,4373.1,4372.7,0.8171]
[1757508016606,3.2078,4373.1,4373.0,0.3019]
[1757508016806,3.2078,4373.6,4373.5,0.8171]
[1757508017013,3.2078,4373.6,4373.5,1.1141]
[1757508017207,4.0059,4373.6,4373.5,0.297]
[1757508017404,3.2078,4373.6,4372.6,0.802]
[1757508017606,0.7981,4373.4,4372.7,0.70857]
[1757508017918,0.7981,4373.4,4372.8,0.297]
[1757508018218,3.5059,4373.0,4371.9,4.0098]
[1757508018410,3.2078,4372.5,4372.0,0.41163]
[1757508018712,3.2078,4372.5,4371.9,0.297]
[1757508018908,0.7981,4372.4,4372.1,0.802]
[1757508019310,0.7981,4372.4,4372.2,0.41161]
[1757508019504,0.7981,4372.4,4371.7,0.41166]
[1757508019712,4.0059,4373.0,4372.4,0.802]
[1757508020004,4.0059,4373.0,4372.6,0.802]
[1757508020208,0.7981,4372.9,4372.6,0.802]
[1757508020403,3.5059,4373.0,4371.8,3.2078]
[1757508020712,3.2078,4372.2,4371.4,0.802]
[1757508021012,3.2078,4372.2,4370.6,32.953]
[1757508021013,4.0059,4371.6,4370.9,0.802]
[1757508021213,4.0059,4371.6,4371.0,0.3061]
[1757508021414,3.2078,4371.6,4371.1,0.802]
[1757508021617,0.2981,4374.5,4371.0,3.2979337]
[1757508021618,0.7981,4372.6,4371.6,0.802]
[1757508021812,0.7981,4372.6,4371.7,0.297]
[1757508022005,0.7981,4372.6,4371.8,0.41165]
[1757508022218,0.7981,4372.6,4371.9,0.802]
[1757508022411,3.2078,4372.3,4371.7,3.22190776]
[1757508022611,3.2078,4372.3,4371.7,0.297]
[1757508022914,4.0059,4372.3,4371.9,0.802]
[1757508023110,3.2078,4372.3,4371.9,0.802]
[1757508023313,3.2078,4372.3,4372.0,0.802]
[1757508023615,0.7981,4372.8,4372.0,0.802]
[1757508023809,0.7981,4372.8,4371.5,0.3061]
[1757508024017,0.7981,4372.3,4371.6,0.802]
[1757508024206,0.7981,4372.3,4371.7,0.296]
[1757508024411,3.2078,4372.4,4371.8,0.802]
[1757508024610,4.0059,4372.4,4371.8,0.802]
[1757508025016,4.0059,4372.4,4372.0,0.802]
[1757508025210,4.0059,4372.4,4371.8,0.802]
[1757508025510,4.0059,4372.9,4372.2,0.802]
[1757508025710,4.0059,4372.9,4372.2,1.098]
[1757508025910,3.2078,4372.9,4372.4,0.4116]
[1757508026112,3.2078,4372.9,4372.5,0.3061]
[1757508026415,0.7981,4373.8,4372.9,0.802]
[1757508026610,0.7981,4373.9,4373.4,0.802]
[1757508026918,0.7981,4373.9,4373.5,0.296]
[1757508027216,3.2078,4374.1,4373.6,0.41149]
[1757508027413,0.7981,4373.9,4373.0,0.802]
[1757508027612,4.0059,4373.6,4373.4,0.296]
[1757508027913,4.0059,4373.6,4373.5,0.802]
[1757508028119,4.0059,4373.6,4373.4,1.098]
[1757508028314,0.7981,4373.5,4373.4,0.296]
[1757508028513,0.7981,4373.5,4373.4,0.59441121]
[1757508028715,1.0962,4373.5,4373.4,0.29841121]
[1757508028911,0.7981,4373.2,4372.4,0.41161]
[1757508029121,3.2078,4373.0,4372.9,0.802]
[1757508029817,3.2078,4373.0,4372.5,0.296]
[1757508029818,0.7981,4372.9,4372.5,0.296]
[1757508030016,0.7981,4372.9,4372.1,0.802]
[1757508030211,3.2078,4372.4,4372.2,0.31855078]
[1757508030529,2.7078,4372.4,4372.3,0.31855078]
[1757508030918,3.0059,4372.4,4372.3,0.31855078]
[1757508033123,3.0059,4372.4,4372.3,0.31933142]
[1757508036421,2.2078,4372.4,4372.3,1.12133142]
[1757508036920,3.0059,4372.4,4372.3,0.31933142]
[1757508037225,2.2078,4372.4,4372.3,1.12133142]
[1757508037525,3.0059,4372.4,4372.3,0.31933142]
[1757508038020,0.7981,4372.3,4371.2,0.41175]
[1757508038225,0.7981,4372.3,4370.9,0.295]
[1757508038226,0.7981,4371.7,4371.3,0.41174]
[1757508038428,0.7981,4371.7,4371.5,0.41172]
[1757508038725,0.7981,4372.2,4371.8,0.41169]
[1757508038934,0.7981,4372.0,4371.6,0.802]
[1757508039224,3.2078,4371.8,4371.6,0.802]
[1757508039522,0.7981,4371.7,4371.5,0.41172]
[1757508039726,0.7981,4371.7,4371.2,1.21375]
[1757508039930,0.7981,4371.7,4371.3,0.41174]
[1757508040226,0.7981,4371.7,4371.4,0.41172]
[1757508040420,0.7981,4371.7,4371.1,1.21375]
[1757508040620,0.294,4371.6,4370.8,3.2078]
[1757508040819,0.294,4371.6,4370.3,0.802]
[1757508040820,4.0059,4370.9,4370.3,0.802]
[1757508041122,3.2078,4370.6,4370.4,0.2879662]
[1757508041318,3.2078,4370.6,4370.5,1.5017862]
[1757508041725,3.5018,4370.8,4370.5,0.2879662]
[1757508041926,0.7981,4370.7,4370.6,0.2879662]
[1757508043525,1.0921,4370.7,4370.6,0.2879662]
[1757508043922,1.0921,4370.7,4369.8,0.294]
[1757508044123,3.2078,4370.2,4369.9,0.287625]
[1757508044324,0.5146,4370.1,4369.5,1.1081]
[1757508044530,3.2078,4369.7,4369.6,0.802]
[1757508044835,0.5146,4370.1,4369.6,0.802]
[1757508045027,0.5146,4370.1,4369.2,0.802]
[1757508045331,0.5146,4370.1,4369.3,0.802]
[1757508045929,0.5146,4370.1,4369.5,0.41191]
[1757508046134,0.5146,4370.1,4369.5,0.71801]
[1757508046434,0.5146,4370.1,4369.5,0.3061]
[1757508048325,0.5146,4370.1,4369.6,0.4119]
[1757508048633,3.5008,4370.2,4369.6,0.7513]
[1757508049435,3.2078,4370.2,4369.6,0.7513]
[1757508049939,3.2078,4370.8,4370.0,0.3067]
[1757508050236,3.2078,4370.8,4370.4,0.41183]
[1757508050530,3.2078,4370.8,4370.5,1.03269233]
[1757508050732,3.2078,4370.8,4370.7,0.7513]
[1757508050928,0.5027,4373.7,4372.6,0.7513]
[1757508051134,0.5027,4373.7,4372.5,0.3067]
[1757508051135,0.5027,4373.7,4373.1,0.7513]
[1757508051332,0.5027,4373.7,4373.3,0.7513]
[1757508051531,0.5027,4374.0,4373.4,0.31418233]
[1757508051833,0.293,4373.9,4373.5,0.31418233]
[1757508052135,0.2116,4373.5,4372.4,3.9591]
[1757508052333,3.2078,4373.1,4372.5,0.3067]
[1757508052538,3.5008,4373.1,4372.5,0.3067]
[1757508053033,0.2116,4373.0,4372.4,0.7513]
[1757508053428,3.2078,4372.6,4372.4,0.7513]
[1757508053930,3.2078,4372.6,4372.1,0.7513]
[1757508054135,3.2078,4373.2,4372.5,1.058]
[1757508055040,3.2078,4373.5,4373.0,0.3067]
[1757508055231,0.2116,4373.4,4372.6,3.02609116]
[1757508055544,0.2116,4373.4,4372.0,0.71837]
[1757508055545,0.2116,4372.8,4372.0,0.3067]
[1757508055830,0.2116,4372.8,4372.1,0.7513]
[1757508056036,0.292,4372.8,4372.2,0.28277064]
[1757508056235,0.292,4372.8,4372.3,0.28277064]
[1757508056533,0.2116,4372.5,4372.4,0.28277064]
[1757508056739,3.7114,4372.5,4372.4,0.07117064]
[1757508056928,7.7114,4372.5,4372.4,0.07117064]
[1757508057125,7.7114,4372.5,4371.5,1.058]
[1757508057330,3.7114,4372.5,4371.5,1.058]
[1757508057532,3.7114,4372.5,4371.6,0.7513]
[1757508057533,3.4998,4372.5,4371.6,0.7513]
[1757508058437,3.2078,4372.0,4371.5,0.3067]
[1757508058834,3.2078,4372.0,4371.6,0.7513]
[1757508059238,3.2078,4372.0,4371.5,1.058]
[1757508059443,3.2078,4372.0,4371.6,0.7513]
[1757508059740,3.2078,4372.0,4371.5,3.5145]
[1757508059946,3.2078,4372.6,4371.6,0.7513]
[1757508060147,0.292,4372.5,4371.6,0.7513]
[1757508060445,0.292,4372.5,4371.5,3.92622]
[1757508060446,3.2078,4372.6,4372.5,0.3067]
[1757508060638,3.2078,4372.6,4372.0,0.3067]
[1757508060840,3.2078,4372.1,4371.6,0.7513]
[1757508061142,3.2078,4372.1,4371.5,0.3067]
[1757508061333,3.2078,4372.1,4371.5,1.058]
[1757508061935,3.2078,4371.6,4371.0,1.058]
[1757508062135,3.4998,4371.6,4371.0,1.058]
[1757508063256,3.4998,4371.6,4370.5,1.058]
[1757508064750,3.2078,4370.8,4370.1,0.7513]
[1757508065758,3.2078,4370.8,4370.5,0.3067]
[1757508066257,3.2078,4370.8,4370.6,0.7513]
[1757508066456,0.291,4370.7,4370.1,0.7513]
[1757508066950,3.2078,4370.3,4369.6,0.7513]
[1757508067150,0.291,4370.2,4369.6,0.7513]
[1757508067346,3.2078,4370.3,4370.1,0.7513]
[1757508067553,3.2078,4370.3,4370.0,0.3067]
[1757508067856,0.291,4370.5,4370.3,0.7513]
[1757508068044,3.2078,4371.8,4370.6,0.7513]
[1757508068248,3.2078,4371.8,4371.6,0.7513]
[1757508069155,3.2078,4371.8,4371.5,0.3067]
[1757508069361,3.2078,4371.8,4371.6,0.7513]
[1757508070253,3.2078,4371.8,4371.5,0.3067]
[1757508070960,3.2078,4372.5,4371.6,0.7513]
[1757508071265,0.291,4372.4,4371.6,0.7513]
[1757508071862,3.2078,4372.5,4372.0,0.3067]
[1757508072155,3.2078,4373.1,4372.1,0.7513]
[1757508072350,3.2078,4373.1,4373.0,1.058]
[1757508072559,3.4988,4373.1,4372.5,0.3067]
[1757508072756,3.4988,4373.1,4372.0,1.058]
[1757508073252,3.2078,4372.6,4372.0,1.058]
[1757508073449,3.4988,4372.6,4372.0,1.058]
[1757508074768,3.2078,4372.6,4372.0,1.058]
[1757508075061,0.29,4372.5,4371.5,0.3067]
[1757508075265,0.29,4372.5,4371.6,0.7513]
[1757508075561,3.2078,4372.6,4372.0,0.3067]
[1757508075759,3.2078,4372.6,4372.1,0.7513]
[1757508075950,3.2078,4374.5,4373.6,0.7513]
[1757508076356,0.29,4374.4,4373.6,0.7513]
[1757508077260,3.2078,4374.0,4373.6,0.8129]
[1757508077461,3.2078,4374.0,4373.5,0.3067]
[1757508077758,3.2078,4374.0,4373.6,0.8129]
[1757508077961,3.2078,4374.0,4373.5,0.3067]
[1757508078161,3.2078,4374.0,4373.6,0.8129]
[1757508078557,3.2078,4374.0,4373.5,0.3067]
[1757508078760,3.2078,4374.0,4373.6,0.8129]
[1757508079159,0.22863001,4373.9,4373.0,3.5145]
[1757508079362,3.2078,4373.3,4373.0,0.3067]
[1757508079561,3.2078,4373.3,4373.1,0.8129]
[1757508080062,3.2078,4373.3,4373.0,0.3067]
[1757508080265,3.2078,4373.3,4373.1,0.8129]
[1757508080867,3.2078,4373.3,4372.3,3.2078]
[1757508080868,0.29,4373.2,4372.6,0.8129]
[1757508081363,3.2078,4372.8,4372.2,0.8129]
[1757508081559,0.22868,4373.1,4372.2,0.8129]
[1757508081560,3.2078,4372.3,4372.2,0.8129]
[1757508082262,0.29,4372.4,4372.1,0.8129]
[1757508083361,3.2078,4372.9,4372.1,0.8129]
[1757508083562,0.29,4372.8,4372.1,0.8129]
[1757508083972,3.2078,4372.4,4371.6,3.2078]
[1757508084866,3.2078,4372.4,4372.1,0.8129]
[1757508085071,0.289,4372.8,4372.1,0.8129]
[1757508086162,3.4968,4373.1,4372.1,1.22457]
[1757508086374,3.4968,4373.1,4373.0,1.1417]
[1757508086666,3.4968,4373.1,4372.5,0.3288]
[1757508086867,3.2078,4372.6,4372.5,1.1417]
[1757508087969,3.2078,4373.1,4373.0,0.3288]
[1757508088169,3.4968,4373.1,4373.0,1.1417]
[1757508088570,3.4968,4373.1,4373.0,1.43584103]
[1757508089767,3.4968,4373.1,4373.0,1.10704103]
[1757508090266,3.4968,4373.1,4373.0,1.43584103]
[1757508090977,3.4968,4373.1,4373.0,0.29414103]
[1757508091272,3.4968,4373.1,4373.0,0.29416479]
[1757508091575,7.72547,4373.1,4373.0,0.29416479]
[1757508091775,7.4968,4373.1,4373.0,0.29416479]
[1757508092172,7.72547,4373.1,4371.6,0.8129]
[1757508092372,3.2078,4372.2,4372.0,0.3288]
[1757508092567,3.2078,4372.2,4372.1,0.8129]
[1757508099465,3.2078,4372.2,4371.6,0.8129]
[1757508099881,3.2078,4371.7,4371.6,0.8129]
[1757508102073,3.4958,4371.7,4371.5,0.3288]
[1757508102376,3.4958,4371.7,4371.5,1.1417]
[1757508102776,3.4958,4371.7,4371.6,0.8129]
[1757508104179,3.4958,4371.7,4371.6,1.10388955]
[1757508106173,3.4958,4371.7,4371.6,1.61268955]
[1757508109078,3.4958,4371.7,4371.6,2.16508955]
[1757508109278,0.288,4371.7,4371.6,2.16508955]
[1757508109584,3.2078,4372.3,4371.7,0.7973]
[1757508109780,0.51573001,4372.2,4372.0,0.3216]
[1757508110091,0.51573001,4372.2,4372.1,1.08828955]
[1757508110384,0.287,4372.2,4372.1,1.08828955]
[1757508110777,0.287,4372.2,4372.1,0.29098955]
[1757508111676,0.287,4372.2,4372.1,1.08828955]
[1757508112680,3.2078,4372.3,4372.2,1.8585]
[1757508112987,3.2078,4372.3,4372.2,2.14948955]
[1757508113692,3.2078,4372.3,4372.2,1.62145094]
[1757508113986,3.2078,4372.3,4372.2,0.29125094]
[1757508115082,3.4938,4372.3,4372.2,1.08855094]
[1757508116789,0.286,4372.6,4372.5,1.1189]
[1757508117082,0.286,4372.6,4372.5,1.41015094]
[1757508117888,3.2078,4372.9,4372.5,1.41015094]
[1757508117889,3.4938,4372.9,4372.6,0.7973]
[1757508118187,3.4938,4372.9,4372.8,0.7973]
[1757508118385,3.4938,4372.9,4372.8,1.08855094]
[1757508120388,3.2078,4373.5,4372.8,1.08855094]
[1757508120589,0.285,4373.4,4373.1,0.7973]
[1757508120886,0.285,4373.4,4373.3,0.7973]
[1757508121092,0.285,4373.4,4373.3,1.08855094]
[1757508121687,3.2078,4373.5,4373.4,0.7973]
[1757508121985,3.2078,4373.5,4373.4,1.08855094]
[1757508122184,3.2078,4373.5,4373.4,5.08855094]
[1757508122382,3.2078,4374.0,4373.6,0.7973]
[1757508122586,3.2078,4374.0,4373.7,0.29125094]
[1757508122788,3.2078,4374.0,4373.9,0.7973]
[1757508122988,3.2078,4374.0,4373.9,1.08855094]
[1757508124982,3.2078,4374.0,4373.9,0.29125094]
[1757508125388,3.2078,4374.0,4373.9,1.08855094]
[1757508125582,3.2078,4374.0,4373.9,0.29125094]
[1757508126088,3.2078,4374.0,4373.9,1.08855094]
[1757508126694,3.2078,4374.0,4373.9,0.29125094]
[1757508127991,3.4928,4374.0,4373.9,0.29125094]
[1757508131492,3.4928,4374.0,4373.1,0.7973]
[1757508131698,3.2078,4373.2,4373.1,1.8585]
[1757508132490,3.2078,4373.2,4373.1,5.8585]
[1757508132696,3.4918,4373.8,4373.7,0.7973]
[1757508133000,3.4918,4373.8,4373.7,1.8585]
[1757508136298,3.4918,4373.8,4373.7,0.7973]
[1757508136600,3.4918,4373.8,4373.6,0.7973]
[1757508136797,3.4918,4373.8,4373.5,0.3216]
[1757508137095,3.4918,4373.8,4373.5,0.8053]
[1757508137296,3.4918,4373.8,4373.7,0.7662]
[1757508137503,3.4918,4373.8,4373.7,1.2499]
[1757508137696,3.4918,4373.8,4373.7,1.7465]
[1757508137892,3.4908,4373.8,4373.7,1.7465]
[1757508139499,3.2078,4373.8,4373.7,1.7465]
[1757508139902,0.283,4374.2,4374.1,0.7662]
[1757508140103,0.283,4374.2,4374.1,1.7465]
[1757508141103,0.283,4374.3,4374.2,0.7662]
[1757508141315,0.283,4374.3,4374.2,1.2499]
[1757508141497,0.283,4374.3,4374.2,1.7465]
[1757508141803,0.283,4374.3,4374.2,1.9168356]
[1757508142497,1.0,4375.0,4374.2,1.1506356]
[1757508142702,1.283,4375.0,4374.9,1.2499]
[1757508143003,4.4908,4375.0,4374.9,1.4202356]
[1757508143195,4.4908,4375.0,4374.9,1.9168356]
[1757508143399,4.4908,4375.0,4374.9,2.19780806]
[1757508143400,4.2078,4375.0,4374.9,2.19780806]
[1757508143598,4.4908,4375.0,4374.9,2.19780806]
[1757508144404,4.4908,4375.0,4374.9,2.19783564]
[1757508145300,1.283,4375.0,4374.9,2.19783564]
[1757508145610,1.0,4375.0,4374.9,2.19783564]
[1757508146105,1.0,4375.0,4374.9,2.19773231]
[1757508147096,1.282,4375.0,4374.9,1.21743231]
[1757508147695,1.282,4375.0,4374.9,0.45123231]
[1757508147898,5.282,4375.0,4374.9,0.45123231]
[1757508148301,5.8090276,4375.0,4374.9,0.45123231]
[1757508149000,5.8090276,4375.0,4373.7,0.7662]
[1757508149204,3.2078,4373.8,4373.7,0.7662]
[1757508153308,3.2078,4373.8,4373.7,1.2499]
[1757508153507,3.4898,4373.8,4373.7,0.7662]
[1757508154199,3.4898,4373.8,4373.7,1.2499]
[1757508154601,3.4898,4373.8,4373.7,0.4837]
[1757508154805,3.4898,4373.8,4373.7,1.7465]
[1757508155800,3.2078,4374.5,4374.0,0.3008]
[1757508156007,3.2078,4374.5,4374.1,0.7662]
[1757508156313,3.2078,4374.5,4374.4,1.7465]
[1757508156506,3.4888,4374.5,4374.4,1.7465]
[1757508156710,3.2078,4374.5,4374.4,1.7465]
[1757508156908,3.2078,4374.5,4374.4,5.7465]
[1757508159310,3.2078,4374.5,4374.4,1.7465]
[1757508159608,1.281,4375.0,4374.9,0.9803]
[1757508159801,1.0,4375.0,4374.9,1.7465]
[1757508163911,1.0,4375.0,4374.9,0.7662]
[1757508164318,1.0,4375.0,4374.9,1.7465]
[1757508165418,1.0,4375.0,4374.9,2.0265]
[1757508165611,3.2078,4375.8,4375.5,0.3008]
[1757508165917,3.6994,4375.8,4375.7,1.7465]
[1757508166217,3.2078,4375.8,4375.7,1.7465]
[1757508166416,3.6994,4375.8,4375.7,1.7465]
[1757508167818,4.1987,4375.8,4375.7,1.7465]
[1757508168017,4.1987,4375.8,4375.5,0.3008]
[1757508168211,1.4411,4375.3,4375.2,0.7733]
[1757508168411,0.5166,4375.2,4375.1,1.2902]
[1757508168612,1.0255,4375.2,4375.1,1.2902]
[1757508168820,3.2078,4375.3,4375.2,1.2902]
[1757508169020,4.6489,4375.3,4375.2,1.2902]
[1757508169408,4.2333,4375.3,4375.2,1.2902]
[1757508170218,4.6489,4375.3,4375.2,0.7733]
[1757508170613,4.6489,4375.3,4375.0,0.3008]
[1757508170614,1.0255,4375.1,4375.0,0.7733]
[1757508170809,1.4411,4375.1,4375.0,0.7733]
[1757508171918,1.0255,4374.6,4374.5,1.0741]
[1757508172118,4.6443,4374.6,4374.1,0.7733]
[1757508172418,4.6443,4374.6,4374.0,0.5798]
[1757508172615,4.6443,4374.6,4374.1,0.7733]
[1757508172818,4.6443,4374.6,4374.0,0.5798]
[1757508173216,4.5123,4374.6,4374.0,0.3008]
[1757508173414,4.6443,4374.1,4374.0,0.3008]
[1757508173612,4.6443,4374.1,4374.0,1.0741]
[1757508174018,4.2333,4374.1,4374.0,1.0741]
[1757508174220,4.2333,4374.1,4374.0,1.591]
[1757508175514,4.2333,4374.1,4374.0,2.0697]
[1757508179421,3.2078,4374.6,4374.5,2.0699]
[1757508180126,3.7244,4374.6,4374.5,2.0699]
[1757508180316,0.2004,4376.0,4375.0,0.301]
[1757508180317,0.279,4375.1,4375.0,0.301]
[1757508180518,3.2078,4375.2,4375.1,1.7689]
[1757508180822,1.4365,4374.7,4374.6,0.7733]
[1757508181121,0.411,4374.6,4374.1,0.7733]
[1757508181318,0.5166,4374.2,4374.1,0.9956]
[1757508181523,3.2078,4374.7,4374.1,0.9956]
[1757508181714,3.2078,4374.7,4374.2,0.7733]
[1757508181921,4.2333,4374.7,4374.6,1.2902]
[1757508182323,4.2333,4374.7,4374.6,1.7689]
[1757508182529,3.7244,4374.7,4374.6,1.7689]
[1757508182831,4.2333,4374.7,4374.6,1.7689]
[1757508183025,4.2333,4374.7,4374.6,1.2902]
[1757508184033,4.2333,4374.7,4374.6,1.7689]
[1757508185025,4.2333,4374.7,4374.6,1.2902]
[1757508185432,4.2333,4374.7,4374.6,0.7733]
[1757508185926,1.4365,4374.2,4374.1,0.7733]
[1757508186234,4.6443,4374.2,4374.1,0.7733]
[1757508186429,4.6443,4374.2,4373.6,0.7733]
[1757508186638,4.6443,4374.2,4373.6,1.18482]
[1757508186833,4.6443,4374.2,4373.6,0.41152]
[1757508187034,4.6443,4374.2,4373.6,0.7733]
[1757508187532,4.2333,4373.7,4373.6,1.2902]
[1757508187830,0.5166,4373.7,4373.6,1.7689]
[1757508188422,3.8968,4374.2,4374.0,0.301]
[1757508188423,0.5166,4374.1,4374.0,0.301]
[1757508188628,1.0255,4374.1,4374.0,2.0699]
[1757508188833,1.0255,4374.1,4374.0,1.5912]
[1757508189039,0.411,4374.0,4373.5,0.301]
[1757508189224,0.5166,4373.0,4372.9,3.7247]
[1757508189534,1.0255,4373.0,4372.9,1.2902]
[1757508190037,3.2078,4373.2,4373.1,1.7689]
[1757508190429,4.0014,4373.9,4373.8,1.7689]
[1757508190631,3.7244,4373.9,4373.8,1.7689]
[1757508190835,4.2333,4373.9,4373.8,1.7689]
[1757508191236,4.2333,4373.9,4373.8,1.2902]
[1757508192338,3.7244,4373.9,4373.8,1.7689]
[1757508194327,3.2078,4373.9,4373.8,1.7689]
[1757508195331,0.411,4374.8,4373.9,0.4115]
[1757508195533,1.0255,4374.8,4374.7,1.2902]
[1757508196130,0.07,4374.9,4374.5,0.7733]
[1757508196330,1.4365,4374.6,4374.5,0.7733]
[1757508196532,1.0255,4374.6,4374.5,1.5912]
[1757508196738,1.4365,4374.6,4374.5,0.7733]
[1757508197234,1.4365,4374.6,4374.0,0.301]
[1757508197435,0.4941,4374.1,4374.0,2.0213]
[1757508197835,3.2078,4374.5,4374.1,0.7134]
[1757508198035,4.1838,4374.5,4374.4,1.2037]
[1757508198433,4.5723,4374.5,4374.4,0.7134]
[1757508198838,4.1838,4374.5,4374.4,0.7134]
[1757508199138,4.1838,4374.5,4374.4,1.2037]
[1757508199343,4.1838,4374.5,4374.4,1.7203]
[1757508199834,4.1838,4374.5,4374.4,1.2037]
[1757508200039,0.7711,4375.0,4374.9,0.4903]
[1757508200240,1.253,4375.0,4374.9,1.2037]
[1757508200441,1.253,4375.0,4374.9,1.7203]
[1757508202140,0.976,4375.0,4374.9,1.7203]
[1757508202839,3.2078,4375.6,4374.9,1.7203]
[1757508203038,3.2078,4375.6,4374.5,0.5607]
[1757508203039,0.4941,4375.6,4375.5,1.2916]
[1757508203437,0.4941,4375.6,4375.5,2.005]
[1757508204438,0.7701,4376.0,4375.9,1.0069]
[1757508204645,0.7701,4376.0,4375.9,1.7203]
[1757508204843,1.252,4376.0,4375.9,1.7203]
[1757508206137,1.252,4376.0,4375.9,0.7134]
[1757508206635,1.252,4376.0,4375.9,1.2037]
[1757508207544,0.3885,4375.6,4375.5,0.9981]
[1757508207745,1.3645,4375.6,4375.5,0.9981]
[1757508208450,0.976,4375.6,4375.5,1.4884]
[1757508208743,0.3885,4375.4,4375.0,0.2847]
[1757508208945,0.4941,4374.7,4374.6,1.7203]
[1757508209747,0.976,4375.6,4375.5,1.4884]
[1757508209948,1.251,4375.6,4375.5,1.4884]
[1757508210150,1.251,4375.6,4375.5,2.005]
[1757508210447,3.2078,4375.7,4375.6,1.7203]
[1757508210649,4.5723,4375.7,4375.6,0.7134]
[1757508210846,0.3885,4375.6,4375.5,0.9981]
[1757508211046,1.3645,4375.6,4375.5,0.7134]
[1757508211637,1.3645,4375.6,4375.0,0.2847]
[1757508211638,0.976,4375.6,4375.0,0.2847]
[1757508211842,0.976,4375.6,4375.0,1.2916]
[1757508211843,3.2078,4375.1,4375.0,1.2916]
[1757508212043,3.7019,4375.1,4375.0,2.005]
[1757508212243,4.1838,4375.1,4375.0,2.005]
[1757508212740,3.2078,4375.7,4375.6,1.7203]
[1757508217342,3.2078,4376.4,4376.3,1.7203]
[1757508217544,3.9759,4376.4,4376.3,1.7203]
[1757508220247,0.7681,4376.4,4376.3,1.7203]
[1757508222354,4.1838,4377.5,4377.4,1.7203]
[1757508222551,0.976,4377.2,4376.8,0.7134]
[1757508222851,4.1838,4376.9,4376.8,1.7203]
[1757508223757,0.976,4376.9,4376.8,1.7203]
[1757508225553,4.5723,4376.9,4376.8,1.2037]
[1757508225753,0.3885,4376.8,4376.6,0.7134]
[1757508225961,0.976,4376.6,4376.5,1.4884]
[1757508226252,0.976,4376.6,4376.5,2.005]
[1757508227254,0.976,4376.6,4376.5,0.9981]
[1757508227457,0.976,4376.6,4376.0,0.2847]
[1757508227762,0.9775,4376.1,4376.0,1.9718]
[1757508228260,1.3394,4376.1,4376.0,0.7016]
[1757508229562,0.9775,4375.6,4375.5,1.4617]
[1757508230062,1.3394,4375.6,4375.5,0.7016]
[1757508230360,1.3394,4375.6,4375.0,0.2847]
[1757508230361,0.9775,4375.6,4375.0,0.2847]
[1757508230552,3.2078,4375.3,4375.2,0.4754]
[1757508230759,4.1853,4375.3,4375.2,1.177]
[1757508231760,4.1853,4375.3,4375.2,1.6871]
[1757508232258,0.9775,4375.1,4375.0,0.2847]
[1757508232457,1.335,4375.1,4375.0,0.9863]
[1757508233953,1.335,4375.1,4375.0,0.7016]
[1757508234154,0.3575,4375.0,4374.5,0.3068]
[1757508234355,0.9775,4374.6,4374.5,0.7822]
[1757508234660,1.335,4374.6,4374.5,0.7822]
[1757508234860,1.335,4374.6,4374.5,1.4838]
[1757508235456,0.9775,4374.6,4374.5,1.4838]
[1757508235756,1.335,4374.6,4374.5,1.4838]
[1757508235963,1.335,4374.6,4374.5,1.0084]
[1757508236558,0.9775,4374.6,4374.5,1.4838]
[1757508237266,3.2078,4374.8,4374.6,0.7016]
[1757508237457,3.2078,4375.8,4375.7,1.6871]
[1757508238261,0.272,4376.0,4375.8,0.7016]
[1757508238460,0.272,4376.0,4375.9,1.6871]
[1757508238872,0.76,4376.0,4375.9,1.6871]
[1757508239367,0.272,4376.0,4375.9,1.6871]
[1757508240368,3.2078,4376.3,4376.2,0.9855]
[1757508240563,3.2078,4376.3,4376.2,1.6871]
[1757508240769,3.4798,4376.3,4376.2,1.6871]
[1757508240970,3.2078,4376.3,4376.2,1.6871]
[1757508241166,0.3575,4377.1,4376.5,0.3068]
[1757508241167,3.2078,4376.9,4376.5,0.3068]
[1757508241364,3.2078,4376.9,4376.8,1.6871]
[1757508241365,3.6958,4376.9,4376.8,1.6871]
[1757508241673,3.9678,4376.9,4376.8,1.6871]
[1757508242462,3.2078,4376.9,4376.8,1.6871]
[1757508242672,0.184,4379.0,4377.4,0.4754]
[1757508242673,3.6958,4377.5,4377.4,0.4754]
[1757508242967,4.97910524,4377.5,4377.4,1.177]
[1757508243368,4.4573,4377.5,4377.4,1.177]
[1757508244168,0.9775,4376.6,4376.5,1.4838]
[1757508246268,0.35239414,4378.0,4376.7,0.7016]
[1757508246269,0.272,4376.8,4376.7,0.7016]
[1757508246468,0.272,4377.0,4376.9,1.6871]
[1757508246972,4.1853,4377.4,4377.3,1.177]